Cogmind - Beta 16 @@@ ROGUE MODE // 2025.12.30 @ 20:17:03 Player: cromly Result: Destroyed by S-10 Pest with Light Assault Rifle Performance ------------- Evolutions (2) 1000 Regions Visited (3) 600 Robots Destroyed (11) 55 Value Destroyed (439) 439 Prototype IDs (1) 20 Alien Tech Used (0) 0 Bonus (0) 0 TOTAL SCORE: 2114 Bonus ------- None Cogmind --------- Core Integrity 0/550 Matter 291/300 Energy 42/100 System Corruption 0% Temperature Cool (10) Movement Flying (60) Location -8/Materials Parts ------- > --- POWER (2) -------- (None) > --- PROPULSION (3) --- Armored Treads Flight Unit > --- UTILITY (2) ------ Targeting Computer > --- WEAPON (4) ------- (None) > --- INVENTORY (5) ---- Improved VTOL Module Improved Heat Sink Large Battery (200) Subdweller Optics EM Pulse Cannon Peak State ------------ > --- POWER ------------ Light Nuclear Core Light Nuclear Core > --- PROPULSION ------- Aluminum Leg Carbon-fiber Leg Carbon-fiber Leg > --- UTILITY ---------- Weight Redist. System Target Analyzer > --- WEAPON ----------- Particle Gun > --- INVENTORY -------- Light Treads Improved Heat Sink Large Battery Subdweller Optics Targeting Computer [Rating: 20] Favorites ----------- Power Light Nuclear Core Engine Subdweller Power Source Power Core Light Nuclear Core Propulsion Light Treads Treads Light Treads Leg Carbon-fiber Leg Wheel Wheel Hover Unit Hover Unit Flight Unit Flight Unit Utility Weight Redist. System Device Weight Redist. System Storage Small Storage Unit Processor Targeting Computer Weapon Assault Rifle Energy Gun Particle Gun Ballistic Gun Assault Rifle Build | -11 -10 -10 -8 ------- Run | Yrd Mat Sub Mat Slots Evolved 4 | . . . 4 Power 1 | . . . 1 Propulsion 1 | . . . 1 Utility . | . . . . Weapon 2 | . . . 2 Parts Attached 37 | 7 4 5 21 Power 7 | 1 1 1 4 Engine 5 | 1 1 1 2 Core 2 | . . . 2 Reactor . | . . . . Propulsion 15 | 2 2 2 9 Treads 4 | 2 . . 2 Leg 3 | . . . 3 Wheel 2 | . . . 2 Hover 2 | . 2 . . Flight 4 | . . 2 2 Utility 9 | 1 1 2 5 Device 6 | . 1 2 3 Storage 1 | 1 . . . Processor 2 | . . . 2 Hackware . | . . . . Protection . | . . . . Artifact . | . . . . Weapon 6 | 3 . . 3 Energy Gun 3 | 1 . . 2 Energy Cannon . | . . . . Ballistic Gun 3 | 2 . . 1 Ballistic Cannon . | . . . . Launcher . | . . . . Special Weapon . | . . . . Impact Weapon . | . . . . Slashing Weapon . | . . . . Piercing Weapon . | . . . . Special Melee Weapon . | . . . . Unidentified Prototypes 1 | . . . 1 Parts Lost 17 | . . 3 14 Power 4 | . . 1 3 Propulsion 9 | . . 2 7 Utility 3 | . . . 3 Weapon 1 | . . . 1 Highest Loss Streak 6 | . . 3 6 To Critical Strikes . | . . . . Average Backups 3 | . . 4 3 Power . | . . 1 . Propulsion . | . . 2 . Utility 1 | . . . 2 Weapon . | . . . . Tool/Special . | . . . . Unused Backups 8 | 3 . . 5 Power 1 | 1 . . . Propulsion 2 | 2 . . . Utility 3 | . . . 3 Weapon 1 | . . . 1 Tool/Special 1 | . . . 1 Average Slot Usage (%) 69 | . 87 80 54 Engine 9 | . 14 13 4 Core 4 | . . . 8 Treads 5 | . 21 . 1 Leg 4 | . . . 10 Hover 6 | . 6 13 2 Flight 4 | . . 14 . Device 11 | . 4 16 11 Storage 4 | . 14 3 . Processor 2 | . . . 5 Energy Gun 2 | . . . 5 Ballistic Gun 13 | . 26 18 3 Peak Build Rating 20 | 6 9 11 20 Average Rating 9 | 4 6 7 13 On Entrance 6 | . 6 8 11 Avg Prop Armor Cover (%) 12 | . . . 12 Naked Turns . | . . . . Heaviest Build 19 | 14 15 12 19 Greatest Support 46 | 40 40 12 46 Greatest Overweight (x) 1 | . 1 1 1 Average Overweight (x) . | . . . . Largest Inventory Capacity 8 | 8 8 8 5 Average Capacity 5 | 6 8 5 5 Most Carried 7 | 5 6 7 5 Average Carried 3 | . 1 4 3 Final Capacity 8 | 8 8 5 5 Final Carried 6 | . 6 4 5 Class Distribution -------------------- 52% | Scavenger-Mutant 47% | Mutant Dominant Class ---------------- Mutant | -10/Materials Scavenger-Mutant | -10/Subcaves Scavenger-Mutant | -8/Materials Resources | -11 -10 -10 -8 ----------- Run | Yrd Mat Sub Mat Matter Collected 851 | 205 97 228 321 Remotely . | . . . . Salvage Created 505 | . 50 156 299 Parts 31 | . 2 10 19 Haulers Intercepted . | . . . . Recyclers Shooed . | . . . . Parts Field Recycled . | . . . . Retrieved Matter . | . . . . Parts Self-Destructed . | . . . . Prevented . | . . . . Parts Restored . | . . . . Kills | -11 -10 -10 -8 ------- Run | Yrd Mat Sub Mat Combat Hostiles Destroyed 10 | . 1 3 6 Guns 10 | . 1 3 6 Classes Destroyed 5 | . 1 1 3 Worker 1 | . . . 1 Grunt 3 | . 1 . 2 Sentry 3 | . . . 3 Hunter 1 | . . . 1 Subdweller 3 | . . 3 . Best Kill Streak 2 | . 1 1 2 Combat Bots Only 2 | . 1 1 2 Max Kills in Single Turn 1 | . 1 1 1 Gunslinging . | . . . . Exploded . | . . . . Melee . | . . . . Uniques/NPCs Destroyed . | . . . . Combat | -11 -10 -10 -8 -------- Run | Yrd Mat Sub Mat Hostile Shots Fired 272 | . . 20 252 Missed 108 | . . 8 100 Hits 164 | . . 12 152 Projectile 164 | . . 12 152 Critical Strikes 3 | . . . 3 Damage Taken 1994 | . 15 254 1725 Core 627 | . . 74 553 Absorbed by Shields 120 | . . . 120 Regen/Repaired (Parts) 121 | . . . 121 Core Remaining (%) 85 | 100 . 70 . Volleys Fired 74 | . 1 28 45 Largest 2 | . 2 2 1 Hottest 65 | . 40 40 65 Shots Fired 78 | . 2 31 45 Gun 78 | . 2 31 45 Cannon . | . . . . Launcher . | . . . . Special . | . . . . Kinetic 54 | . 2 31 21 Thermal 24 | . . . 24 Explosive . | . . . . Electromagnetic . | . . . . Robot Hit Streak 11 | . 2 7 11 Robot Miss Streak 5 | . . 1 5 Penetration Max . | . . . . Secondary Targets 1 | . 1 . . Max Gunslinging Chain 1 | . 1 . . Shots Hit Robots 56 | . 2 21 33 Core Hits 29 | . 2 7 20 Critical Kills . | . . . . Critical Parts Destroyed 1 | . . . 1 Critical Strikes 1 | . . . 1 Destroy 1 | . . . 1 Melee Attacks . | . . . . Impact . | . . . . Slashing . | . . . . Piercing . | . . . . Sneak Attacks . | . . . . Combat Hostiles . | . . . . Follow-up Attacks . | . . . . Damage Inflicted 802 | . 32 268 502 Guns 787 | . 26 268 493 Cannons . | . . . . Explosions . | . . . . Melee . | . . . . Ramming 15 | . 6 . 9 Kinetic 516 | . 26 268 222 Thermal 271 | . . . 271 Explosive . | . . . . Electromagnetic . | . . . . Impact . | . . . . Slashing . | . . . . Piercing . | . . . . Highest Corruption . | . . . . Average Corruption . | . . . . Corruption Purged . | . . . . Corruption Blocked . | . . . . Overload Shots . | . . . . Overflow Damage . | . . . . Projectiles . | . . . . Explosions . | . . . . Melee . | . . . . Knockbacks . | . . . . Impact . | . . . . Kinetic . | . . . . Secondary . | . . . . Self-Inflicted Damage 3 | . . . 3 Shots . | . . . . Rammed 2 | . 1 . 1 Targets Rammed 3 | . 1 . 2 Kicked 1 | . . . 1 Crushed . | . . . . Highest Temperature 207 | . . . 207 Average Temperature 83 | . . . 83 Received Heat Transfer 511 | . . . 511 Siege Activations . | . . . . Martial Activations . | . . . . Shielding Activations . | . . . . Robots Disrupted . | . . . . Combat Hostiles . | . . . . Robots Corrupted . | . . . . Combat Hostiles . | . . . . Parts Fried . | . . . . Impact Corruptions . | . . . . Robots Melted . | . . . . Combat Hostiles . | . . . . Parts Melted 3 | . . . 3 Heat Transferred 629 | . . . 629 Parts Sabotaged . | . . . . Parts Stolen . | . . . . Parts Stripped . | . . . . Power Chain Reactions . | . . . . Alert | -11 -10 -10 -8 ------- Run | Yrd Mat Sub Mat Maximum Alert Level . | . . . . Low Security (%) 100 | 100 100 . 100 Level 1 . | . . . . Level 2 . | . . . . Level 3 . | . . . . Level 4 . | . . . . Level 5 . | . . . . High Security . | . . . . Max Security . | . . . . Peak Influence 57 | . 20 . 57 Initial . | . . . . Average 7 | . 2 . 10 Influence Increases 283 | . 20 . 263 Destroy 0b10 Robot/C 140 | . 20 . 120 Destroy 0b10 Robot/NC 5 | . . . 5 Destroy Leader 40 | . . . 40 Successful Hack 8 | . . . 8 Lose Combat Pursuer 90 | . . . 90 Influence Decreases 226 | . 20 . 206 Time Decay 154 | . 20 . 134 Lost Part 72 | . . . 72 Squads Dispatched 4 | . . . 4 Investigation 1 | . . . 1 Extermination . | . . . . Reinforcement 3 | . . . 3 Assault . | . . . . Garrison . | . . . . Intercept . | . . . . Searches Triggered . | . . . . Construction Impeded . | . . . . Haulers Reinforced . | . . . . Active Scanning Responses . | . . . . Cargo Convoy Interrupts . | . . . . Stealth | -11 -10 -10 -8 --------- Run | Yrd Mat Sub Mat Distress Signals 3 | . 1 . 2 Communications Jammed . | . . . . Distress Signals . | . . . . Times Spotted 38 | . 3 5 30 Peak Tracking Total 14 | . 2 2 14 Tactical Retreats 3 | . . . 3 Traps | -11 -10 -10 -8 ------- Run | Yrd Mat Sub Mat Traps Triggered 2 | . 1 . 1 Indirectly . | . . . . Trap Hack Attempts . | . . . . Triggered . | . . . . Disarmed . | . . . . Reprogrammed . | . . . . Reused . | . . . . Traps Extracted . | . . . . Installed . | . . . . Triggered . | . . . . Machines | -11 -10 -10 -8 ---------- Run | Yrd Mat Sub Mat Machines Disabled . | . . . . Max in Single Turn . | . . . . Machines Repaired . | . . . . Machines Dismantled . | . . . . Machines Sabotaged . | . . . . Overloaded Fab Kills . | . . . . Hacking | -11 -10 -10 -8 --------- Run | Yrd Mat Sub Mat Machines Accessed 3 | . . . 3 Terminals 1 | . . . 1 Fabricators . | . . . . Repair Stations 2 | . . . 2 Recycling Units . | . . . . Scanalyzers . | . . . . Garrison Access . | . . . . Total Hacks 11 | . . . 11 Successful 10 | . . . 10 Failed 1 | . . . 1 Catastrophic . | . . . . Database Lockouts . | . . . . Manual . | . . . . Terminals 3 | . . . 3 Fabricators . | . . . . Repair Stations 8 | . . . 8 Recycling Units . | . . . . Scanalyzers . | . . . . Garrison Access . | . . . . Terminal Hacks 3 | . . . 3 Record 3 | . . . 3 Fabricator Hacks . | . . . . Repair Station Hacks 7 | . . . 7 Scan Component 4 | . . . 4 Repair 3 | . . . 3 Recycling Unit Hacks . | . . . . Scanalyzer . | . . . . Garrison Access Hacks . | . . . . Unauthorized Hacks . | . . . . Terminals . | . . . . Fabricators . | . . . . Repair Stations . | . . . . Recycling Units . | . . . . Scanalyzers . | . . . . Garrison Access . | . . . . Data Cores Recovered . | . . . . Used . | . . . . Hacking Detections 3 | . . . 3 Full Trace Events 3 | . . . 3 Feedback Events . | . . . . Feedback Blocked . | . . . . Robot Schematics Acquired . | . . . . Robots Built . | . . . . Authchips . | . . . . Time . | . . . . Total Robot Build Rating . | . . . . Part Schematics Acquired . | . . . . Parts Built . | . . . . Authchips . | . . . . Time . | . . . . Total Part Build Rating . | . . . . Part Studies Acquired . | . . . . Parts Repaired 3 | . . . 3 Time 78 | . . . 78 Parts Recycled . | . . . . Recycled Matter . | . . . . Retrieved Matter . | . . . . Retrieved Components . | . . . . Parts Scanalyzed . | . . . . Part Schematics Acquired . | . . . . Parts Damaged . | . . . . Bothacking | -11 -10 -10 -8 ------------ Run | Yrd Mat Sub Mat Used RIF Installer . | . . . . Robots Hacked . | . . . . Non-combat . | . . . . Combat . | . . . . Robot Hacks Applied . | . . . . Relay Couplers Released . | . . . . Fabnet Peak Effective % . | . . . . Robots Rewired . | . . . . Allies Hacked . | . . . . Hacks Repelled . | . . . . Allies | -11 -10 -10 -8 -------- Run | Yrd Mat Sub Mat Total Allies . | . . . . Largest Group . | . . . . Highest-Rated Group . | . . . . Highest-Rated Ally . | . . . . Total Orders . | . . . . Ally Attacks . | . . . . Total Damage . | . . . . Kills . | . . . . Allies Corrupted . | . . . . Allies Melted . | . . . . Intel | -11 -10 -10 -8 ------- Run | Yrd Mat Sub Mat Active Infowar (turns) 285 | . . 252 33 Optics 285 | . . 252 33 Robot Analysis Total . | . . . . Derelict Logs Recovered 1 | . . 1 . Drone Launches . | . . . . Drone Recoveries . | . . . . Exploration | -11 -10 -10 -8 ------------- Run | Yrd Mat Sub Mat Turns Passed 1290 | 123 260 329 578 Spaces Moved 1263 | 78 189 522 474 Core 72 | 18 . . 54 Treads 212 | 60 118 . 34 Legs 147 | . . . 147 Wheels 32 | . . . 32 Hover 348 | . 71 184 93 Flight 452 | . . 338 114 Fastest Speed 35 | 50 56 37 35 Average Speed 79 | 134 126 46 88 Slowest Speed 190 | 160 160 120 190 Overloaded Moves . | . . . . Propulsion Burnouts . | . . . . Robots Hopped 18 | . . 1 17 Potential Cave-ins . | . . . . Cave-ins Triggered . | . . . . Exploration Rate (%) 30 | 4 31 41 46 Regions Visited 3 Branch Regions 1 Pre-discovered Areas 1 | . . 1 . Known Exits Taken . | . . . . Unknown Exits Taken 3 | 1 1 1 . Scrap Searched 2 | . . 2 . Spaces Dug . | . . . . Terrain Destroyed . | . . . . Melee . | . . . . Projectile . | . . . . AOE . | . . . . Terrain Rammed . | . . . . Walls Destroyed . | . . . . Machines Disabled . | . . . . Actions | -11 -10 -10 -8 --------- Run | Yrd Mat Sub Mat Total 1454 | 98 204 579 573 Wait 7 | . 3 . 4 Move 1230 | 77 188 519 446 Hop 12 | . . 1 11 Pick Up 44 | 10 6 8 20 Fast Attach 6 | . . . 6 Attach 33 | 6 1 9 17 Detach 9 | . 1 3 5 Swap 16 | 1 3 5 7 Drop 20 | 4 . 6 10 Fire 74 | . 1 28 45 Melee . | . . . . Ram 1 | . . . 1 Kick 1 | . . . 1 Crush 1 | . 1 . . Escape Stasis . | . . . . Rewire . | . . . . Trap . | . . . . Miscellaneous . | . . . . Route ------- -11/Scrapyard -10/Materials (discovered 2 exits: [*Mat] / [*Sub]) -10/Subcaves -8/Materials History --------- Turn | Location | Event 70 | -11/Scrapyard | Discovered new exit (range 12) 124 | -11/Scrapyard | Entered Materials 125 | -10/Materials | Met a group of wandering Federalists 334 | -10/Materials | Discovered new exit (range 8) 346 | -10/Materials | Build established: Mutant 379 | -10/Materials | Discovered new exit (range 9) 384 | -10/Materials | Entered Subcaves 384 | -10/Subcaves | Accompanied by 1 ally 385 | -10/Subcaves | Continued accompanying wandering Federalists (2) 535 | -10/Subcaves | Curiously followed by a Cobbler waking with a query about "LVR3C" 615 | -10/Subcaves | Shifting Twisted Machinery released Mak. Leg 624 | -10/Subcaves | Ambushed by Subdwellers from Twisted Machinery 673 | -10/Subcaves | Learned location of Storage (-7) 678 | -10/Subcaves | Lost 3 parts (1p2n) 687 | -10/Subcaves | Discovered new exit (range 13) 713 | -10/Subcaves | Entered Materials 713 | -8/Materials | Evolved 4 slots: Power x1, Propulsion x1, Weapon x2 726 | -8/Materials | Repaired Hover Unit 752 | -8/Materials | Repaired Assault Rifle 908 | -8/Materials | Lost 6 parts (1p4n1u) 1084 | -8/Materials | Core integrity fell below 50% 1137 | -8/Materials | Repaired Aluminum Leg? 1226 | -8/Materials | Build established: Scavenger-Mutant 1240 | -8/Materials | Core integrity fell below 20% 1274 | -8/Materials | Lost 6 parts (2p3n1w) 1291 | -8/Materials | Destroyed by S-10 Pest with Light Assault Rifle Last Messages --------------- squads to reinforce the local area while you are within range. 01254_ O-16 Technician: "IFF HANDSHAKE FAILED. SECURING TERMINAL." 01259_ O-16 Technician uses terminal to summon reinforcements. 01259_ ALERT: Hostiles spotted, dispatching reinforcements to Terminal M005. 01259_ O-16 Technician locks terminal. 01261_ Terminal unresponsive. 01264_ S-10 Pest destroyed. 01265_ M-13 Machinist repairs S-10 Pest. 01270_ Slug penetrates Wall. 01272_ Acquired Arm. Treads. 01276_ U-05 Engineer builds a Wall. 01279_ Weight Redist. System destroyed. 01285_ S-10 Pest destroyed. 01288_ Acquired Flight Unit. 01289_ S-10 Pest destroyed. 01290_ Acquired 11 matter. Map ----- +----------------------------------------------------+ | ???????????????????????????????????????????? | | ???????????????????????????????????????????? | | ???????????????????????????????????????????? | | ???????????????????????????????????????????? | | ???????????????????????????????????????????? | | ???????????????????????????????????????????? | | ???????????????????????????????????????????? | | ???????????????????????????????????????????? | | ???????????????????????????????????????????? | | ???????????????????????????????????????????? | | ???????????????????????????????????????????? | | ??????????????????????????????? #??????????? | | ????????????????????????????? #??????????? | | ????????????????????????????? #??????????? | | ????????????????????????????? #??????????? | | ????????????????????????????# #??????????? | | ????????????????????????????# #??????????? | | ????????????????????????????# #??????????? | | ????????????????????????????# #??????????? | | ????????????????????????????# +??????????? | | ????????????????????????????# #??????????? | | ?????????????????############ ^ #??????????? | | ?????????????????#= ## ##?????????? | | ?????????????????# # #?????????? | | ?????????????????# # T #?????????? | | ?????????????????# @*g ""k #?????????? | | ?????????????????# ssl u #?????????? | | ?????????????????# g H #?????????? | | ?????????????????# "T" ###g###?????????? | | ?????????????????# #?# #???????????? | | ?????????????????###########?# ##??????????? | | +#########???????????????????# ##??????????? | | #???????????#?????### "######?????? | | #??????????##"##### !!#?????? | | #??????????# !!#?????? | | +??????????# //#?????? | | #??????????# //#?????? | | ! #??????????# #### ] //#?????? | | #??????????# ########## //#?????? | | #??????????# # ] #####?????? | | #??????????# + #?????????? | | #??????????# # #?????????? | | ############ # ! #?????????? | | #?########?????????? | | ###/############### ########???????????? | | # ! ! ## # # #???????????? | | # ## # =# """#???????????? | | # ]]] ! ## + *%+ """#???????????? | | # ]! ## # # """#???????????? | | # ]] !## # # #???????????? | +----------------------------------------------------+ Best States ------------- Heat Dissipation 45 Energy Generation 25 Energy Capacity 300 Matter Stores 300 Matter Capacity 300 Sight Range 21 Terrain Scan Density 10 Additional Mass Support 6 Evasion (%) 63 Targeting Accuracy 5 Target Analysis 5 Recoil Reduction 4 Item Schematics ----------------- None Robot Schematics ------------------ None Fabricated ------------ Nothing Repaired ---------- Assault Rifle | 37% | -8/Materials Aluminum Leg | 35% | -8/Materials Studied --------- None Alien Tech Used ----------------- None Achievements -------------- Cya! For Emergencies Only I Have A Map? Spot Them First Strength In Numbers Universal Adapter Challenges ------------ None Game ------ Seed ContainmentMyomerDoublenader Manual? 0 Play Time 00:45:27 Cumulative 8.4 hours Start 2025.12.30 @ 15:55:17 End 2025.12.30 @ 20:17:03 Sessions 1 Manual Loads 0 Difficulty Rogue Special Mode None Game No. 18 Rogue 18 Adventurer 0 Explorer 0 Win Type - Total 0 Types 0/0/0/0/0/0/0/0/0/0 Lore% 2 Gallery% 7 Achievement% 4 Wizard Run 0 Options --------- Layout 1 ASCII 0 Keyboard 0 Movement Mouse Keybinds 0 Fullscreen 2 Font 48/Smallcaps Map View 50x35 Zoom Use 0% Tactical HUD 1 Map Filters NONE Filters NONE Steam 1 RUN: 8e10a2f1-b76c-4a07-b6e4-6165f6a1b9c6